Cogmind - Beta 9 *** ADVENTURER MODE // 2019.10.25 @ 10:38:35 Player: Armok Result: Destroyed by Y-45 Defender with Heavy Assault Rifle Performance ------------- Evolutions (2) 1000 Regions Visited (8) 1600 Robots Destroyed (61) 305 Value Destroyed (3052) 3052 Prototype IDs (3) 60 Alien Tech Used (0) 0 Bonus (1458) 1458 TOTAL SCORE: 7475 Bonus ------- High Alert Combat Kills 520 Follower Combat Kills 150 Entered Garrisons 400 Used RIF Installer 500 Friendly Fire -112 Cogmind --------- Core Integrity 0/550 Matter 285/300 Energy 80/160 System Corruption 0% Temperature Cool (0) Location -8/Garrison Parts ------- Power (1) Light Nuclear Core Propulsion (2) Armored Wheel Utility (6) High-capacity Storage Unit High-capacity Storage Unit Improved Melee Analysis Suite Hardened Heavy Armor Plating Hacking Suite Weapon (2) Improved Datajack Powered Hammer Inventory (20) Improved Deuterium Engine Improved Melee Analysis Suite Improved Melee Analysis Suite Microactuators Microactuators Actuator Array Improved ECM Suite Medium Reactive Plating Relay Coupler [Swarmer] (50) Relay Coupler [Swarmer] (39) Relay Coupler [Swarmer] (46) Relay Coupler [Grunt] (29) Relay Coupler [Duelist] (33) Relay Coupler [Hunter] (19) Improved Datajack Powered Hammer Axe Peak State ------------ Power Improved Deuterium Engine Propulsion Armored Wheel Armored Wheel Utility High-capacity Storage Unit High-capacity Storage Unit Hardened Heavy Armor Plating Hacking Suite Relay Coupler [Sentry] Weapon Improved Datajack Powered Hammer Inventory Improved Deuterium Engine Armored Wheel Armored Wheel Improved Melee Analysis Suite Improved Melee Analysis Suite Improved Melee Analysis Suite Microactuators Microactuators Actuator Array Improved ECM Suite Hardened Heavy Armor Plating Hardened Heavy Armor Plating Relay Coupler [Swarmer] Relay Coupler [Duelist] Relay Coupler [Hunter] Improved Datajack Powered Hammer Axe [Rating: 39] Favorites ----------- Power Improved Deuterium Engine Engine Improved Deuterium Engine Power Core Light Nuclear Core Propulsion Armored Wheel Treads Light Treads Wheel Armored Wheel Utility High-capacity Storage Unit Device Microactuators Storage High-capacity Storage Unit Processor Signal Interpreter Hackware Hacking Suite Protection Hardened Heavy Armor Plating Weapon Powered Hammer Energy Cannon Heavy Particle Cannon Ballistic Gun Light Assault Rifle Ballistic Cannon Advanced Assault Cannon Impact Weapon Powered Hammer Slashing Weapon Axe Special Melee Weapon Improved Datajack Build | -11 -10 -10 -9 -9 -8 -8 -8 -8 ------- Run | Scr Mat Min Mat Min Mat Gar Mat Gar Slots Evolved 4 | . . . 2 . 2 . . . Power . | . . . . . . . . . Propulsion . | . . . . . . . . . Utility 4 | . . . 2 . 2 . . . Weapon . | . . . . . . . . . Parts Attached 63 | 6 2 . 7 4 6 18 3 17 Power 9 | 1 . . 2 1 . 2 1 2 Engine 6 | 1 . . 2 . . 1 1 1 Core 3 | . . . . 1 . 1 . 1 Reactor . | . . . . . . . . . Propulsion 13 | 2 . . 1 . . 6 . 4 Treads 2 | . . . . . . 2 . . Leg . | . . . . . . . . . Wheel 11 | 2 . . 1 . . 4 . 4 Hover . | . . . . . . . . . Flight . | . . . . . . . . . Utility 28 | 1 2 . 4 1 4 8 1 7 Device 4 | . . . . . 1 2 . 1 Storage 6 | 1 1 . 1 1 . 1 1 . Processor 2 | . . . . . 1 . . 1 Hackware 4 | . . . . . 1 . . 3 Protection 12 | . 1 . 3 . 1 5 . 2 Artifact . | . . . . . . . . . Weapon 13 | 2 . . . 2 2 2 1 4 Energy Gun . | . . . . . . . . . Energy Cannon 2 | . . . . 2 . . . . Ballistic Gun 2 | 2 . . . . . . . . Ballistic Cannon 2 | . . . . . 2 . . . Launcher . | . . . . . . . . . Special Weapon . | . . . . . . . . . Impact Weapon 4 | . . . . . . 2 . 2 Slashing Weapon 1 | . . . . . . . 1 . Piercing Weapon . | . . . . . . . . . Special Melee Weapon 2 | . . . . . . . . 2 Unidentified Prototypes 1 | . . . . . 1 . . . Parts Lost 18 | . . . . 1 . 10 . 7 Power 4 | . . . . . . 2 . 2 Propulsion 7 | . . . . . . 4 . 3 Utility 6 | . . . . . . 4 . 2 Weapon 1 | . . . . 1 . . . . Highest Loss Streak 3 | . . . . 1 . 3 . 2 Average Slot Usage (%) 92 | . 98 100 99 99 99 89 90 88 Engine 5 | . 14 14 11 1 . 4 1 8 Core 3 | . . . . 9 9 3 7 . Treads 2 | . . . . . . 5 . . Wheel 16 | . 28 28 22 22 18 12 18 17 Device 4 | . . . . . 9 8 9 . Storage 16 | . 14 14 22 22 18 12 18 18 Processor 4 | . . . . . 9 6 . 4 Hackware 7 | . . . . . . 9 9 12 Protection 12 | . 12 14 21 22 18 8 9 9 Energy Cannon 2 | . . . . 18 . . . . Ballistic Gun 3 | . 28 28 22 3 . . . . Ballistic Cannon 2 | . . . . . 16 3 . . Impact Weapon 8 | . . . . . . 14 14 6 Special Melee Weapon 2 | . . . . . . . . 8 Naked Turns . | . . . . . . . . . Heaviest Build 103 | 11 26 26 45 69 72 81 102 103 Greatest Support 40 | 26 26 26 26 20 20 40 24 24 Greatest Overweight (x) 8 | . . . 2 3 3 6 4 8 Average Overweight (x) 2 | . . . 1 2 3 2 3 4 Largest Inventory Capacity 20 | 6 10 10 10 12 12 18 20 20 Average Capacity 14 | 5 8 10 10 11 12 13 19 20 Most Carried 20 | 4 10 10 10 12 12 18 20 20 Average Carried 13 | 1 7 9 9 10 11 12 18 18 Final Capacity 20 | . . . . . . . . 20 Final Carried 17 | . . . . . . . . 17 Class Distribution -------------------- 73% | Mutant 16% | Bothacker-Mutant 9% | Hauler-Mutant Dominant Class ---------------- Mutant | -10/Materials Mutant | -10/Mines Mutant | -9/Materials Mutant | -9/Mines Mutant | -8/Materials Mutant | -8/Garrison Bothacker-Mutant | -8/Materials Bothacker-Mutant | -8/Garrison Resources | -11 -10 -10 -9 -9 -8 -8 -8 -8 ----------- Run | Scr Mat Min Mat Min Mat Gar Mat Gar Matter Collected 1499 | 219 42 143 170 52 87 616 . 170 Remotely . | . . . . . . . . . Salvage Created 2388 | . 42 145 . 16 63 1639 30 453 Parts 94 | . 6 5 . 5 11 49 . 18 Haulers Intercepted . | . . . . . . . . . Recyclers Shooed . | . . . . . . . . . Parts Field Recycled . | . . . . . . . . . Retrieved Matter . | . . . . . . . . . Parts Self-Destructed . | . . . . . . . . . Prevented . | . . . . . . . . . Kills | -11 -10 -10 -9 -9 -8 -8 -8 -8 ------- Run | Scr Mat Min Mat Min Mat Gar Mat Gar Combat Hostiles Destroyed 57 | . 3 2 . 4 4 34 . 10 Melee 16 | . . . . . . 9 . 7 Guns 5 | . 3 2 . . . . . . Cannons 22 | . . . . 1 4 17 . . AOE 3 | . . . . 3 . . . . Classes Destroyed 6 | . 1 1 . . 1 3 . . Builder 2 | . . . . . 2 . . . Watcher 2 | . . . . . . 1 1 . Swarmer 27 | . 3 . . 4 4 11 . 5 Grunt 16 | . . 2 . . . 11 . 3 Sentry 12 | . . . . . . 10 . 2 Hunter 2 | . . . . . . 2 . . Best Kill Streak 7 | . 3 2 . 3 4 7 1 3 Combat Bots Only 7 | . 3 2 . 3 4 7 . 3 Max Kills in Single Turn 3 | . 1 1 . 3 2 1 1 1 Gunslinging . | . . . . . . . . . Exploded 3 | . . . . 3 . . . . Melee 1 | . . . . . . 1 . 1 Uniques/NPCs Destroyed 1 | . . . . 1 . . . . YI-UF0 (-9/Mines) Combat | -11 -10 -10 -9 -9 -8 -8 -8 -8 -------- Run | Scr Mat Min Mat Min Mat Gar Mat Gar Damage Taken 5173 | . 48 36 21 273 240 2445 . 2110 Core 595 | . 4 . . 33 . 280 . 278 Absorbed by Shields 99 | . . . . . . 38 . 61 Core Remaining (%) 96 | 100 . 98 . 91 . . . . Volleys Fired 92 | . 5 7 . 11 12 57 . . Largest 2 | . 2 2 . 2 2 2 . . Hottest 150 | . 40 40 . 150 96 96 . . Shots Fired 164 | . 10 14 . 22 24 94 . . Gun 36 | . 10 14 . 12 . . . . Cannon 128 | . . . . 10 24 94 . . Launcher . | . . . . . . . . . Special . | . . . . . . . . . Kinetic 154 | . 10 14 . 12 24 94 . . Thermal 10 | . . . . 10 . . . . Explosive . | . . . . . . . . . Electromagnetic . | . . . . . . . . . Robot Hit Streak 15 | . 5 10 . 9 7 15 . . Robot Miss Streak 4 | . 2 1 . 3 3 4 . . Penetration Max . | . . . . . . . . . Secondary Targets . | . . . . . . . . . Shots Hit Robots 340 | . 6 11 . 14 13 209 1 86 Core Hits 79 | . 4 8 . 4 7 43 . 13 Critical Hits 2 | . . . . . . 2 . . Critical Kills . | . . . . . . . . . Critical Parts Destroyed 2 | . . . . . . 2 . . Melee Attacks 244 | . . . . . . 152 1 91 Impact 216 | . . . . . . 152 1 63 Slashing 14 | . . . . . . . . 14 Piercing . | . . . . . . . . . Sneak Attacks . | . . . . . . . . . Combat Hostiles . | . . . . . . . . . Follow-up Attacks 25 | . . . . . . 25 . . Damage Inflicted 9060 | . 48 96 . 474 349 5994 23 2076 Guns 198 | . 48 96 . 54 . . . . Cannons 1977 | . . . . 50 349 1578 . . Explosions 346 | . . . . 346 . . . . Melee 6515 | . . . . . . 4416 23 2076 Ramming 24 | . . . . 24 . . . . Kinetic 2125 | . 48 96 . 54 349 1578 . . Thermal 396 | . . . . 396 . . . . Explosive . | . . . . . . . . . Electromagnetic . | . . . . . . . . . Impact 5948 | . . . . . . 4416 23 1509 Slashing 567 | . . . . . . . . 567 Piercing . | . . . . . . . . . Highest Corruption . | . . . . . . . . . Average Corruption . | . . . . . . . . . Corruption Purged . | . . . . . . . . . Overload Shots . | . . . . . . . . . Overflow Damage 522 | . . . . 67 . 360 1 94 Projectiles 24 | . . . . 5 . 19 . . Explosions 62 | . . . . 62 . . . . Melee 436 | . . . . . . 341 1 94 Knockbacks 22 | . . . . . 2 19 . 1 Impact 9 | . . . . . . 8 . 1 Kinetic 8 | . . . . . 2 6 . . Secondary 5 | . . . . . . 5 . . Self-Inflicted Damage 96 | . . . . 96 . . . . Shots 3 | . . . . 3 . . . . Rammed 1 | . . . . 1 . . . . Targets Rammed 1 | . . . . 1 . . . . Kicked . | . . . . . . . . . Crushed . | . . . . . . . . . Highest Temperature 428 | . 12 24 . 428 426 322 . 10 Average Temperature 111 | . 5 11 . 140 249 82 . 2 Received Heat Transfer 2016 | . . 27 9 . . 1149 . 831 Effects 9 | . . . . 4 4 1 . . Shutdowns 2 | . . . . 1 1 . . . Energy Bleed 3 | . . . . 1 2 . . . Interference 2 | . . . . . 1 1 . . Damage (minor) 2 | . . . . 2 . . . . Siege Activations . | . . . . . . . . . Robots Corrupted . | . . . . . . . . . Combat Hostiles . | . . . . . . . . . Parts Fried 19 | . . . . . . 14 3 2 Impact Corruptions 29 | . . . . . . 23 1 5 Robots Melted . | . . . . . . . . . Combat Hostiles . | . . . . . . . . . Parts Melted 2 | . . . . 1 . . . 1 Heat Transferred 524 | . . . . 524 . . . . Parts Sabotaged . | . . . . . . . . . Parts Stolen . | . . . . . . . . . Parts Stripped . | . . . . . . . . . Power Chain Reactions . | . . . . . . . . . Missiles Intercepted . | . . . . . . . . . Alert | -11 -10 -10 -9 -9 -8 -8 -8 -8 ------- Run | Scr Mat Min Mat Min Mat Gar Mat Gar Peak Influence 1335 | . 70 86 113 168 144 1335 592 610 Average Influence 500 | . 47 35 61 72 88 832 582 492 Maximum Alert Level 4 | . . . . . . 4 2 2 Low Security (%) 33 | . . . . . . . . . Level 1 5 | . . . . . . . . . Level 2 35 | . . . . . . . . . Level 3 12 | . . . . . . . . . Level 4 13 | . . . . . . . . . Level 5 . | . . . . . . . . . High Security . | . . . . . . . . . Max Security . | . . . . . . . . . Squads Dispatched 1 | . . . 1 . . . . . Investigation 1 | . . . 1 . . . . . Extermination . | . . . . . . . . . Reinforcement . | . . . . . . . . . Assault . | . . . . . . . . . Garrison . | . . . . . . . . . Intercept . | . . . . . . . . . Construction Impeded . | . . . . . . . . . Haulers Reinforced . | . . . . . . . . . Stealth | -11 -10 -10 -9 -9 -8 -8 -8 -8 --------- Run | Scr Mat Min Mat Min Mat Gar Mat Gar Distress Signals 5 | . . . 3 . . 2 . . Communications Jammed . | . . . . . . . . . Distress Signals . | . . . . . . . . . Times Spotted 95 | . 3 2 3 11 6 40 1 29 Peak Tracking Total 10 | . 3 2 2 4 4 7 1 10 Tactical Retreats 7 | . . . . . . 5 . 2 Traps | -11 -10 -10 -9 -9 -8 -8 -8 -8 ------- Run | Scr Mat Min Mat Min Mat Gar Mat Gar Traps Triggered 19 | . . . 1 . . 9 . 9 Indirectly . | . . . . . . . . . Trap Hack Attempts . | . . . . . . . . . Triggered . | . . . . . . . . . Disarmed . | . . . . . . . . . Reprogrammed . | . . . . . . . . . Reused . | . . . . . . . . . Traps Extracted . | . . . . . . . . . Installed . | . . . . . . . . . Triggered 1 | . . . . . . 1 . . Machines | -11 -10 -10 -9 -9 -8 -8 -8 -8 ---------- Run | Scr Mat Min Mat Min Mat Gar Mat Gar Machines Disabled 19 | . . . . 12 . 5 . 2 Max in Single Turn 12 | . . . . 12 . 1 . 1 Garrison Relay 6 | . . . . . . 4 . 2 Machines Sabotaged . | . . . . . . . . . Garrisons Compromised . | . . . . . . . . . Overloaded Fab Kills . | . . . . . . . . . Fab Network Shutdowns . | . . . . . . . . . Hacking | -11 -10 -10 -9 -9 -8 -8 -8 -8 --------- Run | Scr Mat Min Mat Min Mat Gar Mat Gar Machines Accessed 5 | . . . 1 . 1 . 3 . Terminals 3 | . . . 1 . . . 2 . Fabricators . | . . . . . . . . . Repair Stations . | . . . . . . . . . Recycling Units . | . . . . . . . . . Scanalyzers . | . . . . . . . . . Garrison Access 2 | . . . . . 1 . 1 . Total Hacks 13 | . . . 3 . 2 . 8 . Successful 9 | . . . 1 . 1 . 7 . Failed 4 | . . . 2 . 1 . 1 . Catastrophic . | . . . . . . . . . Database Lockouts . | . . . . . . . . . Manual . | . . . . . . . . . Terminals 9 | . . . 3 . . . 6 . Fabricators . | . . . . . . . . . Repair Stations . | . . . . . . . . . Recycling Units . | . . . . . . . . . Scanalyzers . | . . . . . . . . . Garrison Access 4 | . . . . . 2 . 2 . Terminal Hacks 6 | . . . 1 . . . 5 . Record 1 | . . . . . . . 1 . Prototype ID Bank 1 | . . . . . . . 1 . Branch Access Points 1 | . . . 1 . . . . . Security Status 1 | . . . . . . . 1 . Investigation Status 1 | . . . . . . . 1 . Zone Layout 1 | . . . . . . . 1 . Fabricator Hacks . | . . . . . . . . . Repair Station Hacks . | . . . . . . . . . Recycling Unit Hacks . | . . . . . . . . . Scanalyzer . | . . . . . . . . . Garrison Access Hacks 3 | . . . . . 1 . 2 . Unlock Access 2 | . . . . . 1 . 1 . Coupler Status 1 | . . . . . . . 1 . Unauthorized Hacks . | . . . . . . . . . Terminals . | . . . . . . . . . Fabricators . | . . . . . . . . . Repair Stations . | . . . . . . . . . Recycling Units . | . . . . . . . . . Scanalyzers . | . . . . . . . . . Garrison Access . | . . . . . . . . . Data Cores Recovered . | . . . . . . . . . Used . | . . . . . . . . . Hacking Detections 3 | . . . . . 1 . 2 . Full Trace Events . | . . . . . . . . . Feedback Events . | . . . . . . . . . Feedback Blocked . | . . . . . . . . . Robot Schematics Acquired . | . . . . . . . . . Robots Built . | . . . . . . . . . Matter . | . . . . . . . . . Time . | . . . . . . . . . Total Robot Build Rating . | . . . . . . . . . Part Schematics Acquired . | . . . . . . . . . Parts Built . | . . . . . . . . . Matter . | . . . . . . . . . Time . | . . . . . . . . . Total Part Build Rating . | . . . . . . . . . Parts Repaired . | . . . . . . . . . Time . | . . . . . . . . . Parts Recycled . | . . . . . . . . . Recycled Matter . | . . . . . . . . . Retrieved Matter . | . . . . . . . . . Retrieved Components . | . . . . . . . . . Parts Scanalyzed . | . . . . . . . . . Part Schematics Acquired . | . . . . . . . . . Parts Damaged . | . . . . . . . . . Bothacking | -11 -10 -10 -9 -9 -8 -8 -8 -8 ------------ Run | Scr Mat Min Mat Min Mat Gar Mat Gar Used RIF Installer 1 | . . . . . . 1 . . Robots Hacked 8 | . . . . . . . . 8 Non-combat . | . . . . . . . . . Combat 8 | . . . . . . . . 8 Robot Hacks Applied 12 | . . . . . . . . 12 parse_system 1 | . . . . . . . . 1 find_shortcuts 1 | . . . . . . . . 1 disrupt_area 1 | . . . . . . . . 1 wipe_record 2 | . . . . . . . . 2 streamctrl_high 2 | . . . . . . . . 2 formatsys_high 5 | . . . . . . . . 5 Relay Couplers Released 21 | . . . . . . 12 . 9 Machine Destruction 21 | . . . . . . 12 . 9 Attached 3 | . . . . . . . . 3 Robots Rewired . | . . . . . . . . . Allies Hacked . | . . . . . . . . . Hacks Repelled . | . . . . . . . . . Allies | -11 -10 -10 -9 -9 -8 -8 -8 -8 -------- Run | Scr Mat Min Mat Min Mat Gar Mat Gar Total Allies 11 | . . 3 . 1 . . . 7 Largest Group 3 | . . 3 3 3 1 . . 3 Highest-Rated Group 47 | . . 40 40 47 14 . . 47 Highest-Rated Ally 31 | . . 16 16 31 14 . . 16 Total Orders 4 | . . . 4 . . . . . GOTO 3 | . . . 3 . . . . . GUARD 1 | . . . 1 . . . . . Ally Attacks 86 | . . . 8 28 . . . 50 Total Damage 1064 | . . . 114 299 . . . 651 Kills 11 | . . . 2 6 . . . 3 Allies Corrupted . | . . . . . . . . . Allies Melted . | . . . . . . . . . Intel | -11 -10 -10 -9 -9 -8 -8 -8 -8 ------- Run | Scr Mat Min Mat Min Mat Gar Mat Gar Robot Analysis Total . | . . . . . . . . . Derelict Logs Recovered 3 | . . 1 . 2 . . . . Drone Launches . | . . . . . . . . . Drone Recoveries . | . . . . . . . . . Exploration | -11 -10 -10 -9 -9 -8 -8 -8 -8 ------------- Run | Scr Mat Min Mat Min Mat Gar Mat Gar Turns Passed 5364 | 46 177 209 227 766 258 2182 259 1240 Spaces Moved 3389 | 41 166 175 188 602 165 1242 181 629 Core 10 | 10 . . . . . . . . Treads 268 | . . . . . . 268 . . Legs . | . . . . . . . . . Wheels 3111 | 31 166 175 188 602 165 974 181 629 Hover . | . . . . . . . . . Flight . | . . . . . . . . . Fastest Speed 50 | 50 90 90 100 100 110 110 120 120 Average Speed 118 | 80 90 90 100 105 110 130 125 130 Slowest Speed 220 | 90 90 90 100 110 110 220 130 170 Overloaded Moves . | . . . . . . . . . Propulsion Burnouts . | . . . . . . . . . Robots Hopped . | . . . . . . . . . Cave-ins Triggered . | . . . . . . . . . Exploration Rate (%) 41 | 3 22 58 25 98 21 74 15 55 Regions Visited 8 Branch Regions 2 Pre-discovered Areas 1 | . . . . 1 . . . . Known Exits Taken 3 | . . . 1 . 1 . 1 . Unknown Exits Taken 4 | 1 1 1 . 1 . . . . Scrap Searched 4 | . . 1 . 3 . . . . Spaces Dug . | . . . . . . . . . Terrain Destroyed 52 | . . . . 43 9 . . . Melee . | . . . . . . . . . Projectile 15 | . . . . 6 9 . . . AOE 37 | . . . . 37 . . . . Actions | -11 -10 -10 -9 -9 -8 -8 -8 -8 --------- Run | Scr Mat Min Mat Min Mat Gar Mat Gar Total 4390 | 54 185 216 231 713 218 1619 216 938 Wait 362 | . . 26 15 88 28 65 8 132 Move 3380 | 40 165 174 187 601 164 1240 180 629 Hop . | . . . . . . . . . Pick Up 107 | 8 11 2 12 5 5 39 13 12 Fast Attach . | . . . . . . . . . Attach 41 | 6 1 . 4 . 5 16 . 9 Detach 1 | . . . . . 1 . . . Swap 22 | . 1 . 3 4 1 2 3 8 Drop 61 | . 2 2 10 3 2 26 11 5 Fire 92 | . 5 7 . 11 12 57 . . Melee 215 | . . . . . . 123 1 91 Ram 1 | . . . . 1 . . . . Kick . | . . . . . . . . . Crush . | . . . . . . . . . Escape Stasis 99 | . . . . . . 48 . 51 Rewire 9 | . . 5 . . . 3 . 1 Trap . | . . . . . . . . . Miscellaneous . | . . . . . . . . . Route ------- -11/Scrapyard -10/Materials -10/Mines -9/Materials -9/Mines (discovered 2 exits: *Mat x2) -8/Materials -8/Garrison (discovered 3 exits: *Mat x3) -8/Materials -8/Garrison (discovered 2 exits: [*Fac x2]) History --------- Turn | Location | Event 20 | -11/Scrapyard | Discovered new exit (range 15) 47 | -11/Scrapyard | Entered Materials 117 | -10/Materials | Discovered new exit (range 15) 224 | -10/Materials | Entered Mines 277 | -10/Mines | Learned 4 Materials zone layouts 277 | -10/Mines | Assisted by bots powering up and referring to "LRC-V3" 317 | -10/Mines | Build established: Mutant 363 | -10/Mines | Found a hidden stash of uninstalled traps 409 | -10/Mines | Discovered new exit (range 7) 433 | -10/Mines | Entered Materials 433 | -9/Materials | Accompanied by 3 allies 433 | -9/Materials | Evolved 2 slots: Utility x2 434 | -9/Materials | Identified exit to Mines 660 | -9/Materials | Entered Mines 660 | -9/Mines | Accompanied by 3 allies 748 | -9/Mines | Learned 2 Materials zone layouts 774 | -9/Mines | Allies destroyed YI-UF0 1049 | -9/Mines | Found a damaged Exp. Sensor Array with a note attached 1054 | -9/Mines | Found Prototype Device 1104 | -9/Mines | Received a Mining Laser from a helpful Derelict 1180 | -9/Mines | Discovered new exit (range 9) 1375 | -9/Mines | Discovered new exit (range 9) 1426 | -9/Mines | Entered Materials 1426 | -8/Materials | Accompanied by 1 ally 1426 | -8/Materials | Evolved 2 slots: Utility x2 1428 | -8/Materials | Identified Exp. Sensor Array 1683 | -8/Materials | Identified exit to Garrison 1684 | -8/Materials | Entered Garrison 1826 | -8/Garrison | Triggered checkpoint 1891 | -8/Garrison | Destroyed 7 combat bots 1916 | -8/Garrison | Triggered checkpoint 1932 | -8/Garrison | Triggered checkpoint 2332 | -8/Garrison | Triggered checkpoint 2392 | -8/Garrison | Triggered checkpoint 2422 | -8/Garrison | Garrison Relay disabled 2718 | -8/Garrison | Discovered new exit (range 12) 2772 | -8/Garrison | Triggered checkpoint 2896 | -8/Garrison | Garrison Relay disabled 2908 | -8/Garrison | Triggered checkpoint 3089 | -8/Garrison | Triggered checkpoint 3169 | -8/Garrison | Lost 3 parts (1p1n1u) 3332 | -8/Garrison | Garrison Relay disabled 3377 | -8/Garrison | Discovered new exit (range 8) 3394 | -8/Garrison | Installed Relay Interface Framework 3568 | -8/Garrison | Triggered checkpoint 3602 | -8/Garrison | Core integrity fell below 50% 3632 | -8/Garrison | Garrison Relay disabled 3849 | -8/Garrison | Discovered new exit (range 14) 3866 | -8/Garrison | Entered Materials 4124 | -8/Materials | Identified exit to Garrison 4125 | -8/Materials | Entered Garrison 4136 | -8/Garrison | Triggered checkpoint 4222 | -8/Garrison | Triggered checkpoint 4280 | -8/Garrison | Garrison Relay disabled 4323 | -8/Garrison | Build established: Bothacker-Mutant 4336 | -8/Garrison | Triggered checkpoint 4359 | -8/Garrison | Triggered checkpoint 4568 | -8/Garrison | Triggered checkpoint 4610 | -8/Garrison | Triggered checkpoint 4771 | -8/Garrison | Discovered new exit (range 10) 4907 | -8/Garrison | Spotted B-75 Beast 5041 | -8/Garrison | Build established: Hauler-Mutant 5048 | -8/Garrison | Triggered checkpoint 5052 | -8/Garrison | Core integrity fell below 20% 5156 | -8/Garrison | Triggered checkpoint 5213 | -8/Garrison | Garrison Relay disabled 5279 | -8/Garrison | Discovered new exit (range 15) 5365 | -8/Garrison | Destroyed by Y-45 Defender with Heavy Assault Rifle Last Messages --------------- 05213_ Relay Coupler [Grunt] tumbles out of relay unit. 05213_ Relay Coupler [Swarmer] tumbles out of relay unit. 05216_ Acquired Relay Coupler [Grunt]. 05220_ Acquired Relay Coupler [Swarmer]. 05279_ EXIT=FOUND 05295_ Destroyed Heat Sink. 05295_ Y-45 Defender system corrupted by crushing effect. 05299_ Imp. Deuterium Engine destroyed. 05308_ Y-45 Defender misfires. 05314_ Destroyed Imp. Ion Engine. 05314_ Y-45 Defender system corrupted by crushing effect. 05315_ Y-45 Defender system terminally corrupted. 05315_ Lgt. Armor Plating melted. 05315_ Lgt. Treads fried. 05315_ Heat Sink fried. 05335_ Hrd. Heavy Armor Plating destroyed. 05344_ Arm. Wheel destroyed. 05344_ Destroyed Heat Sink. 05344_ Y-45 Defender system corrupted by crushing effect. 05347_ Y-45 Defender misfires. Map ----- +----------------------------------------------------+ | ??????????????????????# | | ??????????????????????# | | ??????????????????????# | | ??????????????????????# #### ########### ##++ | | ??????????????????????# #??# #?????????# ## | | ??????????????????????# #??# #?????????####### | | ??????????????????????# #??# #???????????????# | | ??????????????????????# #??# #???????????????# | | ???????????????######## #### #???????????????# | | ???????????????#[%[* #???????????????# | | ???????????????# ###### ######???????????????# | | ???????????????#%###??# #????????????????????# | | ???????????????#!= #??# #????????????????????### | | ???????????????#== #??# #??????????????????????? | | ???????????????# %#??# #??????????????????????? | | ???????????????# ###??# #??????????????????????? | | ???????????????# #????# #??????????????????????? | | ?????????####### #????# #??????????????????????? | | ?????????#""" "" #????# #??????????????????????? | | ?????????#" #????# #??????????????????????? | | ?????????#" !! #????# #??????????????????????? | | ?????????####+####????# #??????????????????????? | | ????????????# #???????# #??????????????????????? | | ????????????# #???????# #??????????????????????? | | ????????????# #??????## ########???????????????? | | ???????????## ##?????# @Y #???????????? | | ???????????#! !#?????## ########???????????????? | | ???????????#! !#??????#% #??????????????????????? | | ???????????#!!!#??????# #??????????????????????? | | ???????????#####??????# #??????????????????????? | | ??????????????????????# #??????????????????????? | | ??????????????????????# #??????????????????????? | | ??????????????????????# #??????????????????????? | | ??????????????????????# #??????????????????????? | | ??????????????????????# ??????????????????????? | | ??????????????????????#